Workbook

Sheet Foglio1
A4: CLASSIFICA ASSOLUTA INDIVIDUALE FEMMINILE MASCHILE XXXIII CIRCUITO MASTER OLD STARS 2019 | B4: CLASSIFICA ASSOLUTA INDIVIDUALE FEMMINILE MASCHILE XXXV CIRCUITO MASTER OLD STARS - CARPANI SCI 2022
B9: FEMMINILE DAME C6 | C9: Anno | D9: Società Old Stars | E9: Società Fisi | F9: Tonale | G9: Aprica | H9: Temù | I9: Borno | J9: Borno | K9: Comb.Borno | L9: Aprica | M9: Aprica | N9: Chiesa | O9: Chiesa | P9: Comb.Chiesa | Q9: Tonale | R9: Tonale | S9: Comb.Tonale | T9: Lizzola | U9: Lizzola | V9: Aprica | W9: Aprica | X9: Bonus | Y9: Totale | Z9: Classifica
B10: dal 1946 e precedenti
B11: PEZZOTTA LUCIANA | C11: 1942 | D11: SC La Recastello | N11: 100 | O11: 100 | P11: 100 | Q11: 100 | R11: 100 | S11: 100 | T11: 80 | U11: 80 | V11: 100 | W11: 100 | X11: 10 | Y11: =SUM(F11:X11) -> 970 | Z11: 1
B12: FABRETTO ANNA | C12: 1941 | D12: GSA Marinelli | E12: GSA Marinelli | G12: 100 | T12: 100 | U12: 100 | Y12: =SUM(F12:X12) -> 300 | Z12: 2
B14: FEMMINILE DAME C5 | C14: Anno | D14: Società Old Stars | E14: Società Fisi | F14: Tonale | G14: Aprica | H14: Temù | I14: Borno | J14: Borno | K14: Comb.Borno | L14: Aprica | M14: Aprica | N14: Chiesa | O14: Chiesa | P14: Comb.Chiesa | Q14: Tonale | R14: Tonale | S14: Comb.Tonale | T14: Lizzola | U14: Lizzola | V14: Aprica | W14: Aprica | X14: Bonus | Y14: Totale | Z14: Classifica
B15: dal 1947 al 1951
B16: CARRARA GRAZIELLA | C16: 1950 | D16: SC La Recastello | G16: 100 | H16: 100 | I16: 100 | J16: 100 | K16: 100 | L16: 100 | M16: 100 | N16: 100 | O16: 100 | P16: 100 | Q16: 100 | R16: 100 | S16: 100 | T16: 100 | U16: 100 | V16: 100 | W16: 100 | X16: 30 | Y16: =SUM(F16:X16) -> 1730 | Z16: 1
B17: BONZANI MILENA | C17: 1949 | D17: SC Cernobbio | F17: 100 | G17: 80 | I17: 80 | J17: 80 | K17: 80 | L17: 80 | M17: 80 | N17: 80 | O17: 80 | P17: 80 | T17: 80 | U17: 60 | V17: 80 | W17: 50 | X17: 30 | Y17: 1120 | Z17: 2
B18: MONTINI SILVA | C18: 1947 | D18: SC Cernobbio | E18: SC Cernobbio | G18: 60 | I18: 60 | J18: 60 | K18: 60 | L18: 60 | M18: 60 | N18: 45 | O18: 50 | P18: 50 | Q18: 80 | R18: 80 | S18: 80 | T18: 50 | U18: 50 | V18: 50 | W18: 60 | X18: 30 | Y18: 985 | Z18: 3
B19: CONSONNI MARILU' | C19: 1948 | D19: SC Cernobbio | F19: 50 | G19: 50 | H19: 60 | I19: 50 | J19: 50 | K19: 50 | L19: 45 | M19: 45 | N19: 1 | O19: 45 | P19: 1 | Q19: 60 | R19: 60 | S19: 60 | T19: 45 | U19: 40 | V19: 40 | W19: 45 | X19: 60 | Y19: 857 | Z19: 4
B20: GAMBA JONNE | C20: 1950 | D20: SC La Recastello | F20: 45 | G20: 45 | H20: 50 | I20: 45 | J20: 45 | K20: 45 | L20: 40 | M20: 40 | N20: 50 | O20: 36 | P20: 45 | Q20: 45 | R20: 50 | S20: 50 | T20: 40 | U20: 45 | V20: 36 | W20: 36 | X20: 60 | Y20: 848 | Z20: 5
B21: CASTELLINI IVANA | C21: 1951 | D21: SC Cernobbio | E21: SC Cernobbio | F21: 80 | N21: 60 | O21: 60 | P21: 60 | T21: 60 | U21: 80 | V21: 60 | W21: 80 | X21: 10 | Y21: 550 | Z21: 6
B22: MAGLIA MARIKA | C22: 1947 | D22: SC Cernobbio | E22: SC Cernobbio | G22: 40 | L22: 36 | M22: 36 | N22: 1 | O22: 40 | P22: 1 | Q22: 50 | R22: 45 | S22: 45 | T22: 36 | U22: 36 | V22: 32 | W22: 32 | X22: 30 | Y22: =SUM(F22:X22) -> 460 | Z22: 7
B23: SANDRINI EMMA | C23: 1950 | D23: SC Ski Mountain | E23: SC Ponte d.Olio | F23: 60 | H23: 80 | L23: 50 | M23: 50 | Q23: 1 | R23: 1 | S23: 1 | V23: 45 | W23: 40 | X23: 10 | Y23: 338 | Z23: 8
B25: FEMMINILE DAME C4 | C25: Anno | D25: Società Old Stars | E25: Società Fisi | F25: Tonale | G25: Aprica | H25: Temù | I25: Borno | J25: Borno | K25: Comb.Borno | L25: Aprica | M25: Aprica | N25: Chiesa | O25: Chiesa | P25: Comb.Chiesa | Q25: Tonale | R25: Tonale | S25: Comb.Tonale | T25: Lizzola | U25: Lizzola | V25: Aprica | W25: Aprica | X25: Bonus | Y25: Totale | Z25: Classifica
B26: dal 1952 al 1956
B27: BELOTTI P.ANGELA | C27: 1956 | D27: SC La Recastello | F27: 100 | G27: 100 | H27: 100 | I27: 100 | J27: 100 | K27: 100 | L27: 100 | M27: 100 | N27: 100 | O27: 100 | P27: 100 | Q27: 100 | R27: 100 | S27: 100 | T27: 100 | U27: 100 | V27: 100 | W27: 80 | X27: 60 | Y27: =SUM(F27:X27) -> 1840 | Z27: 1
B28: CAPPELLA ANNA | C28: 1955 | D28: SC La Recastello | F28: 80 | G28: 80 | H28: 80 | I28: 80 | J28: 80 | K28: 80 | L28: 80 | M28: 80 | N28: 80 | O28: 80 | P28: 80 | Q28: 1 | R28: 80 | S28: 1 | T28: 80 | U28: 80 | V28: 60 | W28: 60 | X28: 60 | Y28: =SUM(F28:X28) -> 1302 | Z28: 2
B29: CORDANI ELENA | C29: 1955 | D29: SC La Recastello | V29: 80 | W29: 100 | Y29: =SUM(F29:X29) -> 180 | Z29: 3
B31: FEMMINILE DAME C3 | C31: Anno | D31: Società Old Stars | E31: Società Fisi | F31: Tonale | G31: Aprica | H31: Temù | I31: Borno | J31: Borno | K31: Comb.Borno | L31: Aprica | M31: Aprica | N31: Chiesa | O31: Chiesa | P31: Comb.Chiesa | Q31: Tonale | R31: Tonale | S31: Comb.Tonale | T31: Lizzola | U31: Lizzola | V31: Aprica | W31: Aprica | X31: Bonus | Y31: Totale | Z31: Classifica
B32: dal 1957 al 1961
B33: MATTARELLI BRUNELLA | C33: 1957 | D33: SC Ski Mountain | E33: SC Ski Mountain | F33: 100 | G33: 100 | H33: 100 | I33: 100 | J33: 100 | K33: 100 | L33: 100 | M33: 100 | N33: 100 | O33: 100 | P33: 100 | Q33: 80 | R33: 80 | S33: 80 | T33: 80 | U33: 80 | V33: 100 | W33: 80 | X33: 60 | Y33: =SUM(F33:X33) -> 1740 | Z33: 1
B34: MERELLI MARIA LUISA | C34: 1958 | D34: SC La Recastello | G34: 60 | H34: 80 | I34: 80 | J34: 80 | K34: 80 | L34: 80 | M34: 80 | Q34: 60 | R34: 60 | S34: 60 | T34: 60 | U34: 60 | V34: 80 | W34: 60 | X34: 30 | Y34: =SUM(F34:X34) -> 1010 | Z34: 2
B35: SANTAMBROGIO CRISTINA | C35: 1958 | D35: SC Ski Mountain | E35: SC Oggi si Scia | N35: 80 | O35: 80 | P35: 80 | Q35: 100 | R35: 100 | S35: 100 | T35: 100 | U35: 100 | V35: 1 | W35: 100 | X35: 10 | Y35: =SUM(F35:X35) -> 851 | Z35: 3
B36: COMINELLI LIVIA | C36: 1958 | D36: SC La Recastello | F36: 80 | G36: 80 | H36: 60 | Q36: 50 | R36: 50 | S36: 50 | X36: 10 | Y36: =SUM(F36:X36) -> 380 | Z36: 4
B38: FEMMINILE DAME C2 | C38: Anno | D38: Società Old Stars | E38: Società Fisi | F38: Tonale | G38: Aprica | H38: Temù | I38: Borno | J38: Borno | K38: Comb.Borno | L38: Aprica | M38: Aprica | N38: Chiesa | O38: Chiesa | P38: Comb.Chiesa | Q38: Tonale | R38: Tonale | S38: Comb.Tonale | T38: Lizzola | U38: Lizzola | V38: Aprica | W38: Aprica | X38: Bonus | Y38: Totale | Z38: Classifica
B39: dal 1962 al 1966
B40: MERELLI DELIA | C40: 1964 | D40: SC La Recastello | F40: 100 | G40: 60 | H40: 100 | I40: 100 | J40: 100 | K40: 100 | L40: 80 | M40: 80 | Q40: 80 | R40: 80 | S40: 80 | T40: 80 | U40: 80 | V40: 60 | W40: 60 | X40: 30 | Y40: =SUM(F40:X40) -> 1270 | Z40: 1
B41: FUMAGALLI P.ANGELA | C41: 1963 | D41: SC La Recastello | E41: SC OS Noi | G41: 100 | L41: 100 | M41: 100 | Q41: 100 | R41: 100 | S41: 100 | V41: 100 | W41: 100 | X41: 10 | Y41: 810 | Z41: 2
B42: CAPPONI LIANA | C42: 1962 | D42: SC Ski Mountain | N42: 100 | O42: 100 | P42: 100 | Q42: 60 | R42: 60 | S42: 60 | T42: 60 | U42: 60 | X42: 10 | Y42: 610 | Z42: 3
B43: RIGAMONDI GEGIA | C43: 1966 | D43: SC Ski Mountain | T43: 100 | U43: 100 | V43: 80 | W43: 80 | Y43: 360 | Z43: 4
B44: DONINI BRUNA | C44: 1965 | D44: SC La Recastello | N44: 80 | O44: 80 | P44: 80 | Y44: 240 | Z44: 5
B45: CURIONI MARIA LUISA | C45: 1966 | D45: SC Ski Mountain | E45: SC Marzotto | G45: 80 | Y45: 80 | Z45: 6
B47: FEMMINILE DAME C1 | C47: Anno | D47: Società Old Stars | E47: Società Fisi | F47: Tonale | G47: Aprica | H47: Temù | I47: Borno | J47: Borno | K47: Comb.Borno | L47: Aprica | M47: Aprica | N47: Chiesa | O47: Chiesa | P47: Comb.Chiesa | Q47: Tonale | R47: Tonale | S47: Comb.Tonale | T47: Lizzola | U47: Lizzola | V47: Aprica | W47: Aprica | X47: Bonus | Y47: Totale | Z47: Classifica
B48: dal 1967 al 1972
B49: COLOMBO MELISSA | C49: 1967 | D49: SC Ski Mountain | E49: SC Ski Mountain | V49: 100 | W49: 100 | Y49: =SUM(F49:X49) -> 200 | Z49: 1
B51: FEMMINILE JUNIOR | C51: Anno | D51: Società Old Stars | E51: Società Fisi | F51: Tonale | G51: Aprica | H51: Temù | I51: Borno | J51: Borno | K51: Comb.Borno | L51: Aprica | M51: Aprica | N51: Chiesa | O51: Chiesa | P51: Comb.Chiesa | Q51: Tonale | R51: Tonale | S51: Comb.Tonale | T51: Lizzola | U51: Lizzola | V51: Aprica | W51: Aprica | X51: Bonus | Y51: Totale | Z51: Classifica
B52: dal 1973 al 2002
B53: BALLI MANUELA | C53: 1976 | D53: SC La Recastello | Q53: 100 | R53: 100 | S53: 100 | Y53: =SUM(F53:X53) -> 300 | Z53: 1
B54: ZAMBONI MORGANA | C54: 1987 | D54: SC Ski Mountain | E54: SC Corte Franca | F54: 100 | Y54: =SUM(F54:X54) -> 100 | Z54: 2
B56: SUPER 85 | C56: Anno | D56: Società Old Stars | E56: Società Fisi | F56: Tonale | G56: Aprica | H56: Temù | I56: Borno | J56: Borno | K56: Comb.Borno | L56: Aprica | M56: Aprica | N56: Chiesa | O56: Chiesa | P56: Comb.Chiesa | Q56: Tonale | R56: Tonale | S56: Comb.Tonale | T56: Lizzola | U56: Lizzola | V56: Aprica | W56: Aprica | X56: Bonus | Y56: Totale | Z56: Classifica
B57: dal 1936 e precedenti
B58: MORO MARIO | C58: 1934 | D58: SC Ski Mountain | I58: 100 | J58: 100 | K58: 100 | T58: 80 | U58: 80 | V58: 100 | W58: 100 | X58: 10 | Y58: =SUM(F58:X58) -> 670 | Z58: 1
B59: SURINI VINICIO | C59: 1936 | D59: SC La Recastello | E59: SC Goggi | G59: 100 | L59: 100 | M59: 100 | T59: 100 | U59: 100 | X59: 10 | Y59: =SUM(F59:X59) -> 510 | Z59: 2
B60: CANTU' ROBERTO | C60: 1930 | D60: SC Ski Mountain | E60: SC Ski Mountain | V60: 80 | W60: 80 | Y60: =SUM(F60:X60) -> 160 | Z60: 3
B61: AMIGONI LUIGI | C61: 1934 | D61: SC La Recastello | E61: SC Ski Mountain | F61: 100 | Y61: =SUM(F61:X61) -> 100 | Z61: 4
B63: SUPER 80 | C63: Anno | D63: Società Old Stars | E63: Società Fisi | F63: Tonale | G63: Aprica | H63: Temù | I63: Borno | J63: Borno | K63: Comb.Borno | L63: Aprica | M63: Aprica | N63: Chiesa | O63: Chiesa | P63: Comb.Chiesa | Q63: Tonale | R63: Tonale | S63: Comb.Tonale | T63: Lizzola | U63: Lizzola | V63: Aprica | W63: Aprica | X63: Bonus | Y63: Totale | Z63: Classifica
B64: dal 1937 al 1941
B65: GILARDONI FRANCESCO | C65: 1940 | D65: SC Cernobbio | E65: SC Cernobbio | N65: 100 | O65: 100 | P65: 100 | T65: 100 | U65: 100 | V65: 80 | W65: 80 | X65: 10 | Y65: =SUM(F65:X65) -> 670 | Z65: 1
B66: PIRAS ORIO | C66: 1941 | D66: SC Ski Mountain | E66: SC Ski Mountain | V66: 100 | W66: 100 | Y66: =SUM(F66:X66) -> 200 | Z66: 2
B68: SUPER 75 | C68: Anno | D68: Società Old Stars | E68: Società Fisi | F68: Tonale | G68: Aprica | H68: Temù | I68: Borno | J68: Borno | K68: Comb.Borno | L68: Aprica | M68: Aprica | N68: Chiesa | O68: Chiesa | P68: Comb.Chiesa | Q68: Tonale | R68: Tonale | S68: Comb.Tonale | T68: Lizzola | U68: Lizzola | V68: Aprica | W68: Aprica | X68: Bonus | Y68: Totale | Z68: Classifica
B69: dal 1942 al 1946
B70: FERRI GIUSEPPE | C70: 1944 | D70: SC La Recastello | E70: SC Orezzo | F70: 50 | G70: 60 | H70: 60 | I70: 100 | J70: 100 | K70: 100 | L70: 60 | M70: 60 | N70: 100 | O70: 60 | P70: 80 | Q70: 50 | R70: 45 | S70: 50 | T70: 100 | U70: 100 | V70: 60 | W70: 60 | X70: 60 | Y70: =SUM(F70:X70) -> 1355 | Z70: 1
B71: FUMASONI ROBERTO | C71: 1946 | D71: SC Cernobbio | E71: SC Valli del Bitto | F71: 100 | G71: 80 | H71: 100 | L71: 100 | M71: 80 | N71: 80 | O71: 80 | P71: 100 | Q71: 60 | R71: 60 | S71: 60 | V71: 80 | W71: 100 | X71: 30 | Y71: 1110 | Z71: 2
B72: BAVO GIUSEPPE | C72: 1946 | D72: SC Cernobbio | E72: SC Valli del Bitto | F72: 80 | G72: 100 | L72: 80 | M72: 100 | N72: 1 | O72: 100 | P72: 1 | Q72: 100 | R72: 80 | S72: 100 | V72: 100 | W72: 80 | X72: 30 | Y72: 952 | Z72: 3
B73: PELIZZARI GIANGIACOMO | C73: 1943 | D73: SC Cernobbio | E73: SC OS Noi | F73: 40 | G73: 45 | H73: 45 | I73: 80 | J73: 80 | K73: 80 | L73: 45 | M73: 45 | Q73: 36 | R73: 36 | S73: 36 | T73: 80 | U73: 80 | V73: 50 | W73: 50 | X73: 30 | Y73: 858 | Z73: 4
B74: SPLUGA ENZO | C74: 1942 | D74: SC La Recastello | E74: SC Orezzo | F74: 36 | G74: 36 | H74: 36 | I74: 1 | J74: 50 | K74: 1 | L74: 36 | M74: 36 | N74: 40 | O74: 36 | P74: 40 | Q74: 29 | R74: 26 | S74: 26 | T74: 45 | U74: 45 | V74: 36 | W74: 29 | X74: 60 | Y74: 644 | Z74: 5
B75: BORIERO GIANNI | C75: 1946 | D75: SC Cernobbio | E75: SC Retike Ski | F75: 32 | G75: 40 | H75: 32 | L75: 40 | M75: 40 | N75: 60 | O75: 50 | P75: 60 | Q75: 26 | R75: 32 | S75: 29 | V75: 1 | W75: 45 | X75: 30 | Y75: 517 | Z75: 6
B76: ARIZZI CARLO | C76: 1943 | D76: SC Ski Mountain | N76: 45 | O76: 45 | P76: 50 | Q76: 32 | R76: 29 | S76: 32 | T76: 60 | U76: 60 | V76: 40 | W76: 36 | X76: 10 | Y76: 439 | Z76: 7
B77: CATTANEO ACHILLE | C77: 1943 | D77: SC Ski Mountain | E77: SC Pontedilegno | F77: 60 | G77: 1 | H77: 80 | Q77: 80 | R77: 100 | S77: 80 | X77: 10 | Y77: 411 | Z77: 8
B78: MELZI CARLO | C78: 1945 | D78: SC La Recastello | E78: SC OS Noi | F78: 45 | G78: 50 | H78: 50 | L78: 50 | M78: 50 | Q78: 40 | R78: 40 | S78: 40 | X78: 10 | Y78: 375 | Z78: 9
B79: MODESTI ATTILIO | C79: 1946 | D79: SC Ski Mountain | I79: 60 | J79: 60 | K79: 60 | T79: 50 | U79: 50 | V79: 32 | W79: 32 | X79: 10 | Y79: 354 | Z79: 10
B80: BOMBARDIERI ENZO | C80: 1945 | D80: SC Cernobbio | N80: 60 | O80: 40 | P80: 45 | V80: 45 | W80: 40 | Y80: 230 | Z80: 11
B81: RUFFINONI ALDO | C81: 1945 | D81: SC La Recastello | H81: 40 | Q81: 45 | R81: 50 | S81: 45 | T81: 1 | U81: 1 | X81: 10 | Y81: 192 | Z81: 12
B83: SUPER 70 | C83: Anno | D83: Società Old Stars | E83: Società Fisi | F83: Tonale | G83: Aprica | H83: Temù | I83: Borno | J83: Borno | K83: Comb.Borno | L83: Aprica | M83: Aprica | N83: Chiesa | O83: Chiesa | P83: Comb.Chiesa | Q83: Tonale | R83: Tonale | S83: Comb.Tonale | T83: Lizzola | U83: Lizzola | V83: Aprica | W83: Aprica | X83: Bonus | Y83: Totale | Z83: Classifica
B84: dal 1947 al 1951
B85: ZUGNONI LIVIO | C85: 1951 | D85: SC Cernobbio | E85: SC Valli del Bitto | F85: 80 | G85: 80 | H85: 100 | I85: 100 | J85: 100 | K85: 100 | L85: 80 | M85: 80 | N85: 80 | O85: 80 | P85: 80 | Q85: 80 | R85: 80 | S85: 80 | T85: 100 | U85: 80 | V85: 80 | W85: 80 | X85: 60 | Y85: =SUM(F85:X85) -> 1600 | Z85: 1
B86: CURTONI GIORGIO | C86: 1951 | D86: SC Ski Mountain | E86: SC Ski Mountain | F86: 100 | G86: 100 | L86: 100 | M86: 100 | N86: 100 | O86: 100 | P86: 100 | Q86: 100 | R86: 100 | S86: 100 | T86: 80 | U86: 100 | V86: 100 | W86: 100 | X86: 30 | Y86: 1410 | Z86: 2
B87: NOVELLI NANDO | C87: 1947 | D87: SC Ski Mountain | E87: SC Ski Mountain | F87: 45 | G87: 36 | H87: 40 | I87: 60 | J87: 60 | K87: 60 | L87: 40 | M87: 45 | N87: 32 | O87: 26 | P87: 29 | Q87: 40 | R87: 45 | S87: 40 | T87: 60 | U87: 60 | V87: 32 | W87: 45 | X87: 60 | Y87: 855 | Z87: 3
B88: BERERA LINO | C88: 1949 | D88: SC La Recastello | G88: 50 | H88: 50 | I88: 80 | J88: 80 | K88: 80 | L88: 60 | M88: 60 | N88: 60 | O88: 45 | P88: 45 | V88: 45 | W88: 40 | X88: 30 | Y88: 725 | Z88: 4
B89: MODANESI ROMEO | C89: 1951 | D89: SC Ski Mountain | E89: SC Ski Mountain | F89: 50 | G89: 40 | H89: 36 | L89: 50 | M89: 36 | N89: 29 | O89: 40 | P89: 32 | Q89: 45 | R89: 50 | S89: 50 | T89: 50 | U89: 50 | V89: 36 | W89: 29 | X89: 30 | Y89: 653 | Z89: 5
B90: GARBELLINI LINO | C90: 1947 | D90: SC Cernobbio | E90: SC Retike Ski | F90: 40 | G90: 60 | H90: 80 | L90: 1 | M90: 50 | N90: 45 | O90: 60 | P90: 50 | Q90: 50 | R90: 40 | S90: 45 | V90: 40 | W90: 32 | X90: 30 | Y90: 623 | Z90: 6
B91: FERRI CARLO | C91: 1949 | D91: SC Cernobbio | E91: SC Stage Master | G91: 45 | H91: 60 | N91: 50 | O91: 50 | P91: 60 | Q91: 60 | R91: 60 | S91: 60 | V91: 50 | W91: 50 | X91: 10 | Y91: 555 | Z91: 7
B92: MAGNI GIGI | C92: 1950 | D92: SC La Recastello | E92: SC Orezzo | F92: 26 | G92: 20 | H92: 26 | I92: 40 | J92: 40 | K92: 40 | L92: 36 | M92: 29 | N92: 24 | O92: 29 | P92: 24 | T92: 40 | U92: 40 | V92: 24 | W92: 24 | X92: 30 | Y92: 492 | Z92: 8
B93: IMBERTI G.BATTISTA | C93: 1949 | D93: SC La Recastello | E93: SC Orezzo | F93: 36 | G93: 26 | H93: 45 | I93: 50 | J93: 50 | K93: 50 | L93: 45 | M93: 40 | N93: 40 | O93: 36 | P93: 40 | X93: 10 | Y93: 468 | Z93: 9
B94: AGAZZI LUCIO | C94: 1947 | D94: G.S.A.Marinelli | E94: GSA Marinelli | F94: 32 | G94: 22 | I94: 45 | J94: 45 | K94: 45 | L94: 32 | M94: 26 | Q94: 32 | R94: 26 | S94: 26 | T94: 32 | U94: 32 | V94: 20 | W94: 20 | X94: 30 | Y94: 465 | Z94: 10
B95: GHILARDI ANGELO | C95: 1947 | D95: G.S.A.Marinelli | E95: GSA Marinelli | F95: 24 | G95: 18 | I95: 36 | J95: 36 | K95: 36 | L95: 24 | M95: 20 | N95: 18 | O95: 18 | P95: 18 | Q95: 24 | R95: 22 | S95: 22 | T95: 26 | U95: 24 | V95: 15 | W95: 15 | X95: 30 | Y95: 426 | Z95: 11
B96: ROSSI MARCELLO | C96: 1951 | D96: SC Ski Mountain | E96: SC Cristal Ski | F96: 29 | G96: 24 | H96: 29 | N96: 36 | O96: 32 | P96: 36 | Q96: 29 | R96: 32 | S96: 32 | T96: 36 | U96: 36 | V96: 22 | W96: 22 | X96: 30 | Y96: 425 | Z96: 12
B97: ALBRICCI NATALE | C97: 1947 | D97: SC Ski Mountain | E97: SC Radici | H97: 32 | Q97: 26 | R97: 29 | S97: 29 | T97: 45 | U97: 45 | V97: 29 | W97: 36 | X97: 10 | Y97: 281 | Z97: 13
B98: CEMMI FEDERICO | C98: 1951 | D98: SC Ski Mountain | E98: SC Corte Franca | F98: 60 | G98: 32 | L98: 29 | M98: 24 | Q98: 36 | R98: 36 | S98: 36 | X98: 10 | Y98: 263 | Z98: 14
B99: BIELLA GIUSEPPE | C99: 1950 | D99: SC Ski Mountain | E99: SC Cristal Ski | F99: 20 | G99: 1 | H99: 24 | N99: 20 | O99: 20 | P99: 20 | Q99: 18 | R99: 20 | S99: 18 | T99: 24 | U99: 29 | V99: 16 | W99: 16 | X99: 30 | Y99: 276 | Z99: 15
B100: FRACCHIA MAURIZIO | C100: 1948 | D100: SC Cernobbio | G100: 16 | L100: 26 | M100: 22 | N100: 22 | O100: 22 | P100: 22 | Q100: 22 | R100: 24 | S100: 24 | V100: 18 | W100: 18 | X100: 10 | Y100: 246 | Z100: 16
B101: BUZZETTI ALFREDO | C101: 1949 | D101: SC Cernobbio | E101: SC Ski Mountain | G101: 29 | L101: 1 | M101: 32 | N101: 26 | O101: 24 | P101: 26 | V101: 26 | W101: 26 | X101: 10 | Y101: 200 | Z101: 17
B102: FERRARI DARIO | C102: 1947 | D102: SC La Recastello | E102: SC Ski Mountain | F102: 22 | Q102: 20 | R102: 18 | S102: 20 | T102: 29 | U102: 26 | X102: 10 | Y102: 145 | Z102: 18
B103: GRASSI GIOVANNI | C103: 1949 | D103: SC La Recastello | E103: SC Val di Scalve | V103: 60 | W103: 60 | Y103: 120 | Z103: 19
B105: SUPER 65 | C105: Anno | D105: Società Old Stars | E105: Società Fisi | F105: Tonale | G105: Aprica | H105: Temù | I105: Borno | J105: Borno | K105: Comb.Borno | L105: Aprica | M105: Aprica | N105: Chiesa | O105: Chiesa | P105: Comb.Chiesa | Q105: Tonale | R105: Tonale | S105: Comb.Tonale | T105: Lizzola | U105: Lizzola | V105: Aprica | W105: Aprica | X105: Bonus | Y105: Totale | Z105: Classifica
B106: dal 1952 al 1956
B107: BERGAMELLI G.PIETRO | C107: 1954 | D107: SC Ski Mountain | E107: SC Enjoy SkiTeam | G107: 100 | H107: 100 | I107: 100 | J107: 100 | K107: 100 | L107: 100 | M107: 80 | N107: 80 | O107: 80 | P107: 80 | Q107: 80 | R107: 60 | S107: 80 | T107: 100 | U107: 80 | V107: 50 | W107: 50 | X107: 30 | Y107: =SUM(F107:X107) -> 1450 | Z107: 1
B108: VITALI IVAN | C108: 1953 | D108: SC Ski Mountain | E108: SC Radici | F108: 100 | G108: 80 | H108: 80 | I108: 80 | J108: 80 | K108: 80 | Q108: 100 | R108: 100 | S108: 100 | T108: 60 | U108: 100 | V108: 80 | W108: 100 | X108: 30 | Y108: 1170 | Z108: 2
B109: GANDOSSI DANILO | C109: 1956 | D109: SC La Recastello | E109: SC Orezzo | F109: 80 | G109: 60 | H109: 50 | I109: 60 | J109: 60 | K109: 60 | L109: 60 | M109: 60 | N109: 100 | O109: 60 | P109: 60 | Q109: 50 | R109: 50 | S109: 50 | T109: 50 | U109: 45 | V109: 45 | W109: 45 | X109: 60 | Y109: 1105 | Z109: 3
B110: SABBADINI MARIO | C110: 1955 | D110: SC La Recastello | E110: SC Orezzo | H110: 60 | L110: 80 | M110: 100 | N110: 60 | O110: 100 | P110: 100 | Q110: 60 | R110: 80 | S110: 60 | T110: 80 | U110: 60 | V110: 100 | W110: 80 | X110: 30 | Y110: 1050 | Z110: 4
B111: CORBELLA PIERO | C111: 1954 | D111: SC La Recastello | E111: SC Unicredit MI | F111: 60 | G111: 45 | H111: 45 | L111: 45 | M111: 45 | N111: 45 | O111: 50 | P111: 50 | Q111: 45 | R111: 45 | S111: 45 | T111: 36 | U111: 36 | V111: 40 | W111: 40 | X111: 30 | Y111: 702 | Z111: 5
B112: GAMBA BRUNO | C112: 1952 | D112: SC La Recastello | E112: SC OS Noi | H112: 40 | I112: 50 | J112: 50 | K112: 50 | L112: 50 | M112: 50 | Q112: 32 | R112: 36 | S112: 32 | T112: 45 | U112: 50 | V112: 32 | W112: 29 | X112: 30 | Y112: 576 | Z112: 6
B113: LOMBARDI CARMINE | C113: 1955 | D113: SC La Recastello | E113: SC Orezzo | F113: 40 | G113: 26 | H113: 26 | I113: 45 | J113: 45 | K113: 45 | L113: 29 | M113: 29 | N113: 1 | O113: 32 | P113: 1 | Q113: 26 | R113: 24 | S113: 24 | T113: 26 | U113: 32 | V113: 22 | W113: 22 | X113: 60 | Y113: 555 | Z113: 7
B114: BALZARETTI ANGELO | C114: 1955 | D114: SC Cernobbio | E114: SC Cernobbio | G114: 40 | L114: 40 | M114: 32 | N114: 40 | O114: 40 | P114: 40 | Q114: 40 | R114: 40 | S114: 40 | T114: 40 | U114: 40 | V114: 36 | W114: 36 | X114: 30 | Y114: 534 | Z114: 8
B115: ZERBONI FAUSTO | C115: 1953 | D115: SC Cernobbio | E115: SC Retike Ski | F115: 45 | G115: 36 | H115: 36 | L115: 36 | M115: 40 | N115: 32 | O115: 36 | P115: 36 | Q115: 24 | R115: 29 | S115: 26 | V115: 24 | W115: 24 | X115: 30 | Y115: 454 | Z115: 9
B116: BARONCHELLI G.MARIA | C116: 1952 | D116: SC La Recastello | E116: SC Orezzo | H116: 29 | I116: 40 | J116: 40 | K116: 40 | L116: 26 | N116: 36 | Q116: 29 | R116: 26 | S116: 29 | T116: 29 | U116: 24 | V116: 20 | W116: 20 | X116: 30 | Y116: 418 | Z116: 10
B117: SALVADORI FEDERINO | C117: 1955 | D117: SC Cernobbio | E117: SC Stage Master | F117: 50 | G117: 1 | H117: 32 | N117: 50 | O117: 45 | P117: 45 | Q117: 36 | R117: 32 | S117: 36 | V117: 26 | W117: 26 | X117: 10 | Y117: 389 | Z117: 11
B118: AMBROSIONI G.BATTISTA | C118: 1952 | D118: SC Ski Mountain | E118: SC Ski Mountain | F118: 32 | G118: 24 | H118: 22 | I118: 36 | J118: 36 | K118: 36 | Q118: 22 | R118: 22 | S118: 22 | T118: 18 | U118: 18 | V118: 14 | W118: 15 | X118: 30 | Y118: 347 | Z118: 12
B119: GOTTI GIORDANO | C119: 1953 | D119: SC Cernobbio | E119: SC Retike Ski | F119: 36 | G119: 1 | L119: 24 | M119: 26 | N119: 26 | O119: 29 | P119: 29 | Q119: 18 | R119: 18 | S119: 18 | V119: 12 | W119: 13 | X119: 30 | Y119: 280 | Z119: 13
B120: CONFALONIERI NORBERTO | C120: 1952 | D120: SC Ski Mountain | E120: SC La Neve | G120: 22 | N120: 29 | O120: 26 | P120: 32 | T120: 32 | U120: 26 | V120: 16 | W120: 16 | X120: 10 | Y120: 209 | Z120: 14
B121: BARANA ENRICO | C121: 1953 | D121: SC Ski Mountain | E121: SC Ski Mountain | G121: 29 | N121: 24 | O121: 24 | P121: 26 | T121: 24 | U121: 22 | V121: 18 | W121: 18 | X121: 10 | Y121: 195 | Z121: 15
B122: MAGNI MAURIZIO | C122: 1953 | D122: SC Ski Mountain | E122: SC Aprica ski | G122: 32 | L122: 32 | M122: 36 | V122: 29 | W122: 32 | X122: 10 | Y122: 171 | Z122: 16
B123: DI MATTEO GIOVANNINO | C123: 1952 | D123: SC La Recastello | I123: 32 | J123: 32 | K123: 32 | T123: 16 | U123: 16 | Y123: 128 | Z123: 17
B124: BAIO MASSIMO | C124: 1956 | D124: SC Ski Mountain | E124: SC Monte Medale | V124: 60 | W124: 60 | Y124: 120 | Z124: 18
B125: CAVAGNA GIOVANNI | C125: 1953 | D125: SC La Recastello | H125: 24 | Q125: 20 | R125: 20 | S125: 20 | Y125: 84 | Z125: 19
B126: DUCI PIO | C126: 1952 | D126: SC Ski Mountain | E126: SC Val di Scalve | T126: 22 | U126: 29 | V126: 15 | W126: 14 | Y126: 80 | Z126: 20
B127: ALBRICCI BORTOLO | C127: 1956 | D127: SC La Recastello | E127: SC Gromo | T127: 20 | U127: 20 | V127: 13 | W127: 12 | Y127: 65 | Z127: 21
B128: LOCATELLI VALERIO | C128: 1952 | D128: SC Cernobbio | E128: SC Marzotto | G128: 50 | Y128: 50 | Z128: 22
B130: Super 60 | C130: Anno | D130: Società Old Stars | E130: Società Fisi | F130: Tonale | G130: Aprica | H130: Temù | I130: Borno | J130: Borno | K130: Comb.Borno | L130: Aprica | M130: Aprica | N130: Chiesa | O130: Chiesa | P130: Comb.Chiesa | Q130: Tonale | R130: Tonale | S130: Comb.Tonale | T130: Lizzola | U130: Lizzola | V130: Aprica | W130: Aprica | X130: Bonus | Y130: Totale | Z130: Classifica
B131: dal 1957 al 1961
B132: GALAS MARIANO | C132: 1959 | D132: SC Ski Mountain | E132: SC Ski Mountain | F132: 60 | G132: 100 | H132: 60 | I132: 80 | J132: 60 | K132: 60 | L132: 80 | M132: 80 | N132: 100 | O132: 100 | P132: 100 | Q132: 1 | R132: 100 | S132: 1 | T132: 100 | U132: 100 | V132: 80 | W132: 80 | X132: 60 | Y132: =SUM(F132:X132) -> 1402 | Z132: 1
B133: POMONI FAUSTO | C133: 1961 | D133: SC Ski Mountain | E133: SC Valli del Bitto | F133: 80 | G133: 80 | H133: 50 | I133: 50 | J133: 50 | K133: 50 | L133: 60 | M133: 60 | N133: 80 | O133: 60 | P133: 80 | Q133: 60 | R133: 60 | S133: 80 | V133: 60 | W133: 60 | X133: 30 | Y133: 1050 | Z133: 2
B134: FAZZINI AMOS | C134: 1960 | D134: SC Ski Mountain | E134: SC Alta Valsassina | H134: 100 | I134: 60 | J134: 100 | K134: 100 | L134: 100 | M134: 100 | N134: 60 | O134: 80 | P134: 60 | V134: 100 | W134: 100 | X134: 10 | Y134: 970 | Z134: 3
B135: CARRARA ADRIANO | C135: 1957 | D135: SC La Recastello | E135: SC Orezzo | F135: 50 | G135: 60 | H135: 36 | I135: 45 | J135: 40 | K135: 45 | L135: 50 | M135: 45 | N135: 45 | O135: 45 | P135: 45 | Q135: 80 | R135: 50 | S135: 60 | T135: 80 | U135: 80 | X135: 30 | Y135: 886 | Z135: 4
B136: TOMBINI P.ANGELO | C136: 1960 | D136: SC Ski Mountain | E136: SC Ski Mountain | F136: 40 | G136: 45 | H136: 45 | I136: 32 | J136: 32 | K136: 32 | L136: 36 | M136: 40 | N136: 36 | O136: 36 | P136: 36 | Q136: 50 | R136: 45 | S136: 50 | T136: 60 | U136: 60 | V136: 36 | W136: 40 | X136: 60 | Y136: 811 | Z136: 5
B137: VAINI GUIDO | C137: 1958 | D137: SC Ski Mountain | E137: SC Ski Mountain | F137: 29 | G137: 36 | H137: 29 | I137: 36 | J137: 36 | K137: 36 | L137: 32 | M137: 36 | N137: 32 | O137: 29 | P137: 29 | Q137: 40 | R137: 32 | S137: 40 | T137: 40 | U137: 45 | V137: 32 | W137: 36 | X137: 60 | Y137: 685 | Z137: 6
B138: BORDAZZI SERGIO | C138: 1958 | D138: SC La Recastello | E138: SC Ponte Nossa | F138: 24 | G138: 29 | H138: 26 | I138: 29 | J138: 29 | K138: 29 | N138: 26 | O138: 32 | P138: 32 | Q138: 36 | R138: 40 | S138: 36 | T138: 36 | U138: 32 | V138: 22 | W138: 29 | X138: 30 | Y138: 517 | Z138: 7
B139: ORIO SERGIO | C139: 1958 | D139: SC Ski Mountain | E139: SC STT Competition | F139: 100 | H139: 80 | Q139: 100 | R139: 80 | S139: 100 | Y139: 460 | Z139: 8
B140: MIGLIORATI SERGIO | C140: 1959 | D140: SC La Recastello | E140: SC Presolana M.Pora | F140: 45 | I140: 100 | J140: 80 | K140: 80 | L140: 45 | M140: 50 | X140: 10 | Y140: 410 | Z140: 9
B141: PEZZOLI GIACOMO | C141: 1961 | D141: SC La Recastello | F141: 22 | G141: 26 | H141: 22 | I141: 26 | J141: 26 | K141: 26 | N141: 29 | O141: 26 | P141: 26 | T141: 32 | U141: 36 | V141: 18 | W141: 20 | X141: 30 | Y141: 365 | Z141: 10
B142: CIAPONI FABIO | C142: 1960 | D142: SC Cernobbio | E142: SC Sport Due | F142: 26 | G142: 32 | H142: 20 | L142: 29 | M142: 32 | N142: 24 | O142: 24 | P142: 24 | Q142: 32 | R142: 26 | S142: 29 | X142: 10 | Y142: 308 | Z142: 11
B143: MAXENTI VINCENZO | C143: 1957 | D143: SC Ski Mountain | E143: SC Ski Mountain | F143: 18 | G143: 1 | L143: 20 | M143: 22 | N143: 20 | O143: 20 | P143: 20 | Q143: 26 | R143: 24 | S143: 26 | T143: 26 | U143: 26 | X143: 10 | Y143: 259 | Z143: 12
B144: DONATI ADRIANO | C144: 1958 | D144: SC Ski Mountain | E144: SC Snow Eagle | N144: 50 | O144: 50 | P144: 50 | V144: 45 | W144: 45 | Y144: 240 | Z144: 13
B145: CARMINI STEFANO | C145: 1961 | D145: SC Ski Mountain | E145: SC Temi Milano | F145: 32 | H145: 24 | Q145: 45 | R145: 29 | S145: 45 | V145: 20 | W145: 26 | X145: 10 | Y145: 231 | Z145: 14
B146: PINI FRANCESCO | C146: 1961 | D146: SC Ski Mountain | E146: SC Ski Mountain | G146: 24 | I146: 24 | J146: 24 | K146: 24 | L146: 24 | M146: 26 | T146: 29 | U146: 29 | X146: 10 | Y146: 214 | Z146: 15
B147: BALZI IVANO | C147: 1958 | D147: SC La Recastello | E147: SC OS Noi | L147: 26 | M147: 29 | Q147: 29 | R147: 36 | S147: 32 | V147: 24 | W147: 22 | X147: 10 | Y147: 208 | Z147: 16
B148: COLOMBO STEFANO | C148: 1961 | D148: SC Ski Mountain | E148: SC Ski Mountain | F148: 20 | G148: 22 | H148: 18 | L148: 22 | M148: 24 | N148: 22 | O148: 22 | P148: 22 | X148: 10 | Y148: 182 | Z148: 17
B149: MANGINI BATTISTA | C149: 1961 | D149: SC La Recastello | E149: SC Zogno | G149: 40 | I149: 40 | J149: 45 | K149: 40 | Y149: 165 | Z149: 18
B150: POLATTI ADRIANO | C150: 1961 | D150: SC Ski Mountain | E150: SC Aprica SkiTeam | G150: 50 | H150: 32 | L150: 40 | V150: 40 | W150: 1 | Y150: 163 | Z150: 19
B151: GALIZZI OSCAR | C151: 1960 | D151: SC Ski Mountain | T151: 50 | U151: 40 | V151: 26 | W151: 24 | Y151: 140 | Z151: 20
B152: BANFI LUCA | C152: 1959 | D152: SC Ski Mountain | E152: SC Ski Mountain | F152: 36 | T152: 45 | U152: 50 | Y152: 131 | Z152: 21
B153: GALBUSERA GUIDO | C153: 1958 | D153: SC Cernobbio | E153: SC Snow Eagle | N153: 40 | O153: 40 | P153: 40 | Y153: 120 | Z153: 22
B154: VIGANO ANDREA | C154: 1958 | D154: SC La Recastello | E154: SC Stage Master | V154: 50 | W154: 50 | Y154: 100 | Z154: 23
B155: CORTI MASSIMO | C155: 1957 | D155: SC Ski Mountain | E155: SC Monte Medale | V155: 29 | W155: 32 | Y155: 61 | Z155: 24
B156: RODIGARI EUGENIO | C156: 1958 | D156: SC Ski Mountain | T156: 24 | U156: 24 | V156: 1 | W156: 1 | Y156: 50 | Z156: 25
B157: BRECCIAROLI MAURIZIO | C157: 1961 | D157: SC Ski Mountain | E157: SC Giornalisti Italiani | H157: 40 | Y157: 40 | Z157: 26
B158: RODIGARI ELIO | C158: 1961 | D158: SC Ski Mountain | V158: 16 | W158: 18 | Y158: 34 | Z158: 27
B160: Super 55 | C160: Anno | D160: Società Old Stars | E160: Società Fisi | F160: Tonale | G160: Aprica | H160: Temù | I160: Borno | J160: Borno | K160: Comb.Borno | L160: Aprica | M160: Aprica | N160: Chiesa | O160: Chiesa | P160: Comb.Chiesa | Q160: Tonale | R160: Tonale | S160: Comb.Tonale | T160: Lizzola | U160: Lizzola | V160: Aprica | W160: Aprica | X160: Bonus | Y160: Totale | Z160: Classifica
B161: dal 1962 al 1966
B162: COLOMBO STEFANO | C162: 1966 | D162: SC Ski Mountain | E162: SC Ski Mountain | F162: 100 | G162: 60 | H162: 80 | I162: 80 | J162: 80 | K162: 80 | N162: 80 | O162: 50 | P162: 50 | Q162: 50 | R162: 60 | S162: 50 | T162: 60 | U162: 60 | V162: 80 | W162: 60 | X162: 30 | Y162: =SUM(F162:X162) -> 1110 | Z162: 1
B163: PLONA MARCO | C163: 1966 | D163: SC Ski Mountain | E163: SC Aprica | G163: 100 | H163: 100 | L163: 100 | M163: 80 | Q163: 100 | R163: 100 | S163: 100 | V163: 100 | W163: 100 | X163: 10 | Y163: 890 | Z163: 2
B164: CANCLINI DAVIDE | C164: 1963 | D164: SC Cernobbio | E164: SC Retike Ski | F164: 45 | G164: 40 | H164: 45 | I164: 50 | J164: 50 | K164: 50 | L164: 50 | M164: 50 | N164: 50 | O164: 60 | P164: 60 | Q164: 45 | R164: 45 | S164: 45 | V164: 50 | W164: 45 | X164: 30 | Y164: 810 | Z164: 3
B165: ZUGNONI ENEA | C165: 1965 | D165: SC Cernobbio | F165: 50 | G165: 50 | H165: 50 | N165: 60 | O165: 80 | P165: 80 | T165: 50 | U165: 1 | V165: 45 | W165: 50 | X165: 10 | Y165: 526 | Z165: 4
B166: MULAZZI GIANNI | C166: 1966 | D166: SC Ski Mountain | E166: SC Enjoy SkiTeam | I166: 100 | J166: 100 | K166: 100 | T166: 100 | U166: 100 | Y166: 500 | Z166: 5
B167: MAGGIONI ACHILLE | C167: 1965 | D167: SC Ski Mountain | E167: SC Ski Race Camp | N167: 100 | O167: 100 | P167: 100 | V167: 60 | W167: 80 | Y167: 440 | Z167: 6
B168: SALVADORI MARCO | C168: 1963 | D168: SC Cernobbio | E168: SC Stage Master | F168: 80 | G168: 80 | H168: 60 | Q168: 60 | R168: 50 | S168: 60 | X168: 10 | Y168: 400 | Z168: 7
B169: ZANETTI MATTEO | C169: 1964 | D169: SC Ski Mountain | E169: SC Goggi | Q169: 80 | R169: 80 | S169: 80 | T169: 80 | U169: 80 | Y169: 400 | Z169: 8
B170: GUALLA ALFREDO | C170: 1962 | D170: SC Ski Mountain | E170: SC Pila | L170: 80 | M170: 100 | Y170: 180 | Z170: 9
B171: MARCONI VALENTINO | C171: 1963 | D171: SC La Recastello | E171: SC Ponte Nossa | I171: 60 | J171: 60 | K171: 60 | Y171: 180 | Z171: 10
B172: ROSSI PAOLO | C172: 1962 | D172: SC La Recastello | E172: SC Rovetta | F172: 60 | L172: 60 | M172: 60 | Y172: 180 | Z172: 11
B173: POROTTO MARCO | C173: 1962 | D173: SC Ski Mountain | G173: 45 | Y173: 45 | Z173: 12
B174: MANGINI G.PIETRO | C174: 1964 | D174: SC La Recastello | E174: SC Zogno | H174: 40 | Y174: 40 | Z174: 13
B176: Super 50 | C176: Anno | D176: Società Old Stars | E176: Società Fisi | F176: Tonale | G176: Aprica | H176: Temù | I176: Borno | J176: Borno | K176: Comb.Borno | L176: Aprica | M176: Aprica | N176: Chiesa | O176: Chiesa | P176: Comb.Chiesa | Q176: Tonale | R176: Tonale | S176: Comb.Tonale | T176: Lizzola | U176: Lizzola | V176: Aprica | W176: Aprica | X176: Bonus | Y176: Totale | Z176: Classifica
B177: dal 1967 al 1972
B178: CIAPONI WALTER | C178: 1969 | D178: SC Cernobbio | E178: SC Sport Due | F178: 100 | G178: 80 | H178: 100 | I178: 80 | J178: 80 | K178: 80 | N178: 80 | O178: 80 | P178: 80 | Q178: 100 | R178: 100 | S178: 100 | T178: 100 | U178: 100 | V178: 80 | W178: 80 | X178: 30 | Y178: =SUM(F178:X178) -> 1450 | Z178: 1
B179: SIBOLDI GIULIO | C179: 1970 | D179: SC La Recastello | E179: SC Piazzatorre | G179: 100 | H179: 80 | I179: 100 | J179: 100 | K179: 100 | N179: 100 | O179: 100 | P179: 100 | Q179: 80 | R179: 80 | S179: 80 | T179: 80 | U179: 80 | X179: 30 | Y179: =SUM(F179:X179) -> 1210 | Z179: 2
B180: GERLETTI ALBERTO | C180: 1970 | D180: SC Cernobbio | N180: 60 | O180: 60 | P180: 60 | V180: 60 | W180: 60 | Y180: =SUM(F180:X180) -> 300 | Z180: 3
B181: CANTONI DAVIDE | C181: 1967 | D181: SC Cernobbio | E181: SC Cernobbio | N181: 50 | O181: 50 | P181: 50 | V181: 50 | W181: 50 | Y181: =SUM(F181:X181) -> 250 | Z181: 4
B182: DE TOMA MARCO | C182: 1969 | D182: SC Ski Mountain | E182: SC Enjoy SkiTeam | V182: 100 | W182: 100 | Y182: =SUM(F182:X182) -> 200 | Z182: 5
B184: Junior | C184: Anno | D184: Società Old Stars | E184: Società Fisi | F184: Tonale | G184: Aprica | H184: Temù | I184: Borno | J184: Borno | K184: Comb.Borno | L184: Aprica | M184: Aprica | N184: Chiesa | O184: Chiesa | P184: Comb.Chiesa | Q184: Tonale | R184: Tonale | S184: Comb.Tonale | T184: Lizzola | U184: Lizzola | V184: Aprica | W184: Aprica | X184: Bonus | Y184: Totale | Z184: Classifica
B185: dal 1973 al 2002
B186: MANGINI MARCO | C186: 1996 | D186: SC La Recastello | E186: SC Zogno | F186: 60 | I186: 100 | J186: 100 | K186: 100 | N186: 100 | O186: 100 | P186: 100 | Q186: 100 | R186: 100 | S186: 100 | X186: 10 | Y186: =SUM(F186:X186) -> 970 | Z186: 1
B187: COGLIATI GIACOMO | C187: 1997 | D187: SC Ski Mountain | E187: SC Amici Montagna | L187: 80 | M187: 100 | V187: 100 | W187: 100 | Y187: 380 | Z187: 2
B188: DANIELLI ALESSANDRO | C188: 1977 | D188: SC Cernobbio | N188: 80 | O188: 80 | P188: 80 | Y188: 240 | Z188: 3
B189: RICETTI FABRIZIO | C189: 1977 | D189: SC Ski Mountain | E189: SC STT Competition | F189: 1 | L189: 100 | Y189: 101 | Z189: 4
B190: SORLINI CHRISTIAN | C190: 1975 | D190: SC Ski Mountain | E190: SC Figli d. Vento | F190: 100 | Y190: 100 | Z190: 5
B191: CIAPONI SIMONE | C191: 1994 | D191: SC Cernobbio | E191: SC Sport Due | F191: 80 | Y191: 80 | Z191: 6
B192: MUTTI LUCA | C192: 2001 | D192: SC Ski Mountain | E192: SC STT Competition | F192: 1 | Y192: 1 | Z192: 7

Sheet Foglio2
